Cogmind - Beta 11 @@@ ROGUE MODE // 2022.03.27 @ 13:39:17 Player: Happytimes Result: Destroyed by B-36 Bruiser with Hammer Performance ------------- Evolutions (2) 1000 Regions Visited (3) 600 Robots Destroyed (36) 180 Value Destroyed (914) 914 Prototype IDs (5) 100 Alien Tech Used (0) 0 Bonus (106) 106 TOTAL SCORE: 2900 Bonus ------- High Alert Combat Kills 106 Cogmind --------- Core Integrity 0/550 Matter 300/300 Energy 100/100 System Corruption 6% Temperature Cool (0) Movement Core (200) Ox3 Location -8/Materials Parts ------- > --- POWER (2) -------- (None) > --- PROPULSION (4) --- (None) > --- UTILITY (3) ------ Small Storage Unit > --- WEAPON (2) ------- Chainsword Chainsword > --- INVENTORY (8) ---- Light Nuclear Core Aerolev Unit Improved VTOL Module Datajack Chainsword Peak State ------------ > --- POWER ------------ Improved Ion Engine Light Nuclear Core > --- PROPULSION ------- VTOL Module VTOL Module Improved VTOL Module Improved VTOL Module > --- UTILITY ---------- Small Storage Unit Hacking Suite > --- WEAPON ----------- Chainsword Chainsword > --- INVENTORY -------- Ion Engine Improved Ion Engine Aerolev Unit Aerolev Unit VTOL Module Datajack Chainsword Chainsword [Rating: 31] Favorites ----------- Power Improved Ion Engine Engine Improved Ion Engine Power Core Light Nuclear Core Propulsion VTOL Module Wheel Compact Wheel Hover Unit Aerolev Unit Flight Unit VTOL Module Utility Small Storage Unit Storage Small Storage Unit Hackware Hacking Suite Weapon Chainsword Energy Gun Small Laser Energy Cannon Ion Cannon Ballistic Gun Light Assault Rifle Ballistic Cannon Assault Cannon Slashing Weapon Chainsword Special Melee Weapon Datajack Build | -11 -10 -9 -8 ------- Run | Scr Mat Mat Mat Slots Evolved 4 | . . 2 2 Power 1 | . . . 1 Propulsion 2 | . . 2 . Utility 1 | . . . 1 Weapon . | . . . . Parts Attached 40 | 6 8 6 20 Power 6 | 1 1 2 2 Engine 5 | 1 1 2 1 Core 1 | . . . 1 Reactor . | . . . . Propulsion 20 | 2 5 2 11 Treads . | . . . . Leg . | . . . . Wheel 2 | 2 . . . Hover 4 | . . . 4 Flight 14 | . 5 2 7 Utility 3 | 1 . 1 1 Device . | . . . . Storage 2 | 1 . . 1 Processor . | . . . . Hackware 1 | . . 1 . Protection . | . . . . Artifact . | . . . . Weapon 11 | 2 2 1 6 Energy Gun 3 | . 1 1 1 Energy Cannon 1 | . . . 1 Ballistic Gun 2 | 2 . . . Ballistic Cannon 1 | . . . 1 Launcher . | . . . . Special Weapon . | . . . . Impact Weapon . | . . . . Slashing Weapon 3 | . . . 3 Piercing Weapon . | . . . . Special Melee Weapon 1 | . 1 . . Unidentified Prototypes 3 | . . . 3 Parts Lost 12 | . . 1 11 Power 2 | . . . 2 Propulsion 8 | . . . 8 Utility 1 | . . . 1 Weapon 1 | . . 1 . Highest Loss Streak 6 | . . 1 6 To Critical Strikes 1 | . . . 1 Average Slot Usage (%) 77 | . 78 91 73 Engine 11 | . 14 11 7 Wheel 1 | . 3 . . Hover 2 | . . . 6 Flight 27 | . 24 44 26 Storage 11 | . 14 11 9 Hackware 4 | . . 9 8 Energy Gun 2 | . 3 9 . Ballistic Gun 8 | . 16 5 . Slashing Weapon 6 | . . . 13 Naked Turns . | . . . . Heaviest Build 21 | 13 13 15 21 Greatest Support 32 | 32 32 16 24 Greatest Overweight (x) 5 | . 1 . 5 Average Overweight (x) . | . . . . Largest Inventory Capacity 8 | 8 8 8 8 Average Capacity 7 | 7 8 8 8 Most Carried 8 | 5 8 7 8 Average Carried 6 | . 6 5 6 Final Capacity 8 | 8 8 8 8 Final Carried 8 | . 8 7 5 Class Distribution -------------------- 79% | Mutant 20% | Sprinter Dominant Class ---------------- Mutant | -10/Materials Sprinter | -9/Materials Mutant | -8/Materials Resources | -11 -10 -9 -8 ----------- Run | Scr Mat Mat Mat Matter Collected 632 | 208 136 24 264 Remotely . | . . . . Salvage Created 1245 | . 199 56 990 Parts 91 | . 22 6 63 Haulers Intercepted 2 | . . . 2 Recyclers Shooed . | . . . . Parts Field Recycled . | . . . . Retrieved Matter . | . . . . Parts Self-Destructed . | . . . . Prevented . | . . . . Kills | -11 -10 -9 -8 ------- Run | Scr Mat Mat Mat Combat Hostiles Destroyed 28 | . 6 5 17 Melee 17 | . . . 17 Guns 8 | . 6 2 . AOE 3 | . . 3 . Classes Destroyed 10 | . 5 . 5 Worker 1 | . . . 1 Builder 1 | . 1 . . Tunneler 1 | . . . 1 Hauler 2 | . . . 2 Recycler 1 | . . . 1 Operator 1 | . 1 . . Watcher 1 | . 1 . . Swarmer 11 | . 3 5 3 Grunt 10 | . 3 . 7 Sentry 7 | . . . 7 Best Kill Streak 11 | . 3 5 11 Combat Bots Only 11 | . 3 5 11 Max Kills in Single Turn 3 | . 1 3 1 Gunslinging . | . . . . Exploded 3 | . . 3 . Melee 1 | . . . 1 Uniques/NPCs Destroyed . | . . . . Combat | -11 -10 -9 -8 -------- Run | Scr Mat Mat Mat Damage Taken 1602 | . 159 182 1261 Core 640 | . 20 44 576 Absorbed by Shields . | . . . . Core Remaining (%) 93 | 100 92 89 . Volleys Fired 48 | . 41 7 . Largest 2 | . 2 1 . Hottest 60 | . 60 45 . Shots Fired 62 | . 55 7 . Gun 62 | . 55 7 . Cannon . | . . . . Launcher . | . . . . Special . | . . . . Kinetic 48 | . 48 . . Thermal 7 | . 7 . . Explosive . | . . . . Electromagnetic 7 | . . 7 . Robot Hit Streak 8 | . 8 3 . Robot Miss Streak 5 | . 4 5 . Penetration Max . | . . . . Secondary Targets . | . . . . Shots Hit Robots 90 | . 31 4 55 Core Hits 42 | . 16 5 21 Critical Kills . | . . . . Critical Parts Destroyed . | . . . . Critical Strikes 3 | . . . 3 Sever 3 | . . . 3 Melee Attacks 69 | . . . 69 Impact . | . . . . Slashing 69 | . . . 69 Piercing . | . . . . Sneak Attacks 6 | . . . 6 Combat Hostiles . | . . . . Follow-up Attacks 7 | . . . 7 Damage Inflicted 2577 | . 281 172 2124 Guns 321 | . 281 40 . Cannons . | . . . . Explosions 132 | . . 132 . Melee 2124 | . . . 2124 Ramming . | . . . . Kinetic 249 | . 249 . . Thermal 164 | . 32 132 . Explosive . | . . . . Electromagnetic 40 | . . 40 . Impact . | . . . . Slashing 2124 | . . . 2124 Piercing . | . . . . Highest Corruption 6 | . 3 . 6 Average Corruption 4 | . 2 . 6 Corruption Purged . | . . . . Corruption Blocked . | . . . . Overload Shots . | . . . . Overflow Damage 120 | . . . 120 Projectiles . | . . . . Explosions . | . . . . Melee 120 | . . . 120 Knockbacks . | . . . . Impact . | . . . . Kinetic . | . . . . Secondary . | . . . . Self-Inflicted Damage 14 | . . 14 . Shots 1 | . . 1 . Rammed . | . . . . Targets Rammed . | . . . . Kicked . | . . . . Crushed . | . . . . Highest Temperature 72 | . 72 54 7 Average Temperature 18 | . 16 21 7 Received Heat Transfer 420 | . 42 18 360 Siege Activations . | . . . . Robots Corrupted . | . . . . Combat Hostiles . | . . . . Parts Fried . | . . . . Impact Corruptions . | . . . . Robots Melted . | . . . . Combat Hostiles . | . . . . Parts Melted 1 | . 1 . . Heat Transferred 175 | . 75 100 . Parts Sabotaged . | . . . . Parts Stolen . | . . . . Parts Stripped . | . . . . Power Chain Reactions 1 | . . 1 . Missiles Intercepted . | . . . . Alert | -11 -10 -9 -8 ------- Run | Scr Mat Mat Mat Peak Influence 628 | . 197 203 628 Initial 85 | . . . 85 Average 150 | . 97 52 247 Maximum Alert Level 2 | . . 1 2 Low Security (%) 76 | 100 100 93 43 Level 1 14 | . . 6 34 Level 2 9 | . . . 22 Level 3 . | . . . . Level 4 . | . . . . Level 5 . | . . . . High Security . | . . . . Max Security . | . . . . Squads Dispatched 6 | . 2 1 3 Investigation 1 | . . . 1 Extermination . | . . . . Reinforcement 5 | . 2 1 2 Assault . | . . . . Garrison . | . . . . Intercept . | . . . . Searches Triggered . | . . . . Construction Impeded . | . . . . Haulers Reinforced . | . . . . Active Scanning Responses . | . . . . Cargo Convoy Interrupts . | . . . . Stealth | -11 -10 -9 -8 --------- Run | Scr Mat Mat Mat Distress Signals 2 | . . 1 1 Communications Jammed . | . . . . Distress Signals . | . . . . Times Spotted 64 | . 16 12 36 Peak Tracking Total 10 | . 3 6 10 Tactical Retreats 5 | . . . 5 Traps | -11 -10 -9 -8 ------- Run | Scr Mat Mat Mat Traps Triggered 2 | . 2 . . Indirectly . | . . . . Trap Hack Attempts . | . . . . Triggered . | . . . . Disarmed . | . . . . Reprogrammed . | . . . . Reused . | . . . . Traps Extracted . | . . . . Installed . | . . . . Triggered . | . . . . Machines | -11 -10 -9 -8 ---------- Run | Scr Mat Mat Mat Machines Disabled . | . . . . Max in Single Turn . | . . . . Machines Sabotaged . | . . . . Garrisons Compromised . | . . . . Overloaded Fab Kills . | . . . . Hacking | -11 -10 -9 -8 --------- Run | Scr Mat Mat Mat Machines Accessed 6 | . . 1 5 Terminals 5 | . . 1 4 Fabricators . | . . . . Repair Stations . | . . . . Recycling Units . | . . . . Scanalyzers 1 | . . . 1 Garrison Access . | . . . . Total Hacks 20 | . . 6 14 Successful 17 | . . 5 12 Failed 3 | . . 1 2 Catastrophic . | . . . . Database Lockouts . | . . . . Manual . | . . . . Terminals 14 | . . 6 8 Fabricators . | . . . . Repair Stations . | . . . . Recycling Units . | . . . . Scanalyzers 6 | . . . 6 Garrison Access . | . . . . Terminal Hacks 11 | . . 5 6 Robot Analysis 1 | . . . 1 Prototype ID Bank 1 | . . 1 . Emergency Access Points 2 | . . 1 1 Locate Traps 1 | . . . 1 Dispatch Records 1 | . . 1 . Security Status 2 | . . 1 1 Hauler Manifests 1 | . . 1 . Zone Layout 2 | . . . 2 Fabricator Hacks . | . . . . Repair Station Hacks . | . . . . Recycling Unit Hacks . | . . . . Scanalyzer 6 | . . . 6 Insert Component 2 | . . . 2 Analyze 4 | . . . 4 Garrison Access Hacks . | . . . . Unauthorized Hacks . | . . . . Terminals . | . . . . Fabricators . | . . . . Repair Stations . | . . . . Recycling Units . | . . . . Scanalyzers . | . . . . Garrison Access . | . . . . Data Cores Recovered . | . . . . Used . | . . . . Hacking Detections 3 | . . . 3 Full Trace Events 1 | . . . 1 Feedback Events . | . . . . Feedback Blocked . | . . . . Robot Schematics Acquired . | . . . . Robots Built . | . . . . Authchips . | . . . . Time . | . . . . Total Robot Build Rating . | . . . . Part Schematics Acquired 2 | . . . 2 Parts Built . | . . . . Authchips . | . . . . Time . | . . . . Total Part Build Rating . | . . . . Parts Repaired . | . . . . Time . | . . . . Parts Recycled . | . . . . Recycled Matter . | . . . . Retrieved Matter . | . . . . Retrieved Components . | . . . . Parts Scanalyzed 2 | . . . 2 Part Schematics Acquired 2 | . . . 2 Parts Damaged . | . . . . Bothacking | -11 -10 -9 -8 ------------ Run | Scr Mat Mat Mat Used RIF Installer . | . . . . Robots Hacked . | . . . . Non-combat . | . . . . Combat . | . . . . Robot Hacks Applied . | . . . . Relay Couplers Released . | . . . . Fabnet Peak Effective % . | . . . . Robots Rewired . | . . . . Allies Hacked . | . . . . Hacks Repelled . | . . . . Allies | -11 -10 -9 -8 -------- Run | Scr Mat Mat Mat Total Allies . | . . . . Largest Group . | . . . . Highest-Rated Group . | . . . . Highest-Rated Ally . | . . . . Total Orders . | . . . . Ally Attacks . | . . . . Total Damage . | . . . . Kills . | . . . . Allies Corrupted . | . . . . Allies Melted . | . . . . Intel | -11 -10 -9 -8 ------- Run | Scr Mat Mat Mat Robot Analysis Total 1 | . . . 1 Derelict Logs Recovered . | . . . . Drone Launches . | . . . . Drone Recoveries . | . . . . Exploration | -11 -10 -9 -8 ------------- Run | Scr Mat Mat Mat Turns Passed 1028 | 59 461 82 426 Spaces Moved 890 | 54 275 128 433 Core 16 | 15 . . 1 Treads . | . . . . Legs . | . . . . Wheels 73 | 39 34 . . Hover 35 | . . . 35 Flight 766 | . 241 128 397 Fastest Speed 26 | 50 100 26 26 Average Speed 66 | 86 111 26 47 Slowest Speed 300 | 100 117 26 300 Overloaded Moves . | . . . . Propulsion Burnouts . | . . . . Robots Hopped 1 | . . 1 . Cave-ins Triggered . | . . . . Exploration Rate (%) 27 | 3 39 21 48 Regions Visited 3 Branch Regions . Pre-discovered Areas . | . . . . Known Exits Taken . | . . . . Unknown Exits Taken 3 | 1 1 1 . Scrap Searched . | . . . . Spaces Dug . | . . . . Terrain Destroyed 4 | . . 4 . Melee . | . . . . Projectile . | . . . . AOE 4 | . . 4 . Terrain Rammed . | . . . . Walls Destroyed . | . . . . Machines Disabled . | . . . . Actions | -11 -10 -9 -8 --------- Run | Scr Mat Mat Mat Total 1180 | 65 382 167 566 Wait 94 | 1 42 23 28 Move 885 | 53 274 125 433 Hop 1 | . . 1 . Pick Up 31 | 5 12 3 11 Fast Attach 8 | 1 1 . 6 Attach 20 | 5 . 4 11 Detach 3 | . . . 3 Swap 12 | . 7 2 3 Drop 19 | . 5 2 12 Fire 48 | . 41 7 . Melee 59 | . . . 59 Ram . | . . . . Kick . | . . . . Crush . | . . . . Escape Stasis . | . . . . Rewire . | . . . . Trap . | . . . . Miscellaneous . | . . . . Route ------- -11/Scrapyard -10/Materials -9/Materials -8/Materials History --------- Turn | Location | Event 6 | -11/Scrapyard | Discovered new exit (range 16) 60 | -11/Scrapyard | Entered Materials 318 | -10/Materials | Build established: Mutant 504 | -10/Materials | Discovered new exit (range 16) 521 | -10/Materials | Entered another Materials area 521 | -9/Materials | Evolved 2 slots: Propulsion x2 599 | -9/Materials | Discovered new exit (range 13) 603 | -9/Materials | Entered another Materials area 603 | -8/Materials | Evolved 2 slots: Power x1, Utility x1 858 | -8/Materials | Core integrity fell below 50% 888 | -8/Materials | Lost 3 parts (1p2n) 979 | -8/Materials | Core integrity fell below 20% 1029 | -8/Materials | Destroyed by B-36 Bruiser with Hammer Last Messages --------------- 01008_ R-06 Scavenger collects Lgt. Treads. 01009_ Aerolev Unit destroyed. 01011_ R-06 Scavenger collects Lgt. Armor Plating. 01011_ Y-45 Defender destroyed. 01011_ K-01 Serf collects debris. 01014_ G-47 Trooper destroyed. 01014_ Aerolev Unit destroyed. 01014_ K-01 Serf collects debris. 01016_ Y-45 Defender destroyed. 01017_ K-01 Serf collects debris. 01023_ Knocked back. 01024_ Destroyed Flight Unit. 01024_ S-10 Pest destroyed. 01024_ K-01 Serf collects debris. 01026_ Critical hit (Smash). 01026_ Imp. Ion Engine destroyed. 01026_ Imp. VTOL Module destroyed. 01026_ System corrupted by crushing effect (+2). 01026_ System corrupted by crushing effect (+4). 01028_ K-01 Serf collects debris. Map ----- +----------------------------------------------------+ | | | | | | | | | | | | | | | | | | | | | | | | | | | | | | | | | | | | | ?????????????????????????????????????????????????? | | ??????????????????????########???????????????????? | | ??????????????????????# "" #???????????????????? | | ??????????????????????# ""S #???????????????????? | | ??????????????????????#=%""[[#???????????????????? | | ??????????????????????#=!![[!#???????????????????? | | ??????????????????????#![[[=k#???????????????????? | | ??????????????????????#[%@%[[#######?????????????? | | ?????????????????#########b### #?????????????? | | ???????????? k=% [ ##+######?????? | | ???????????? *=[ ???? | | ???????????? =! % #######???????? | | ????????????? ############## !!#?????????????? | | ?????????????????????##########k ########???????? | | ?????????????????????# #!%=# #?????? | | ?????????????????????# """ # # """"" #?????? | | ??????????????????????""""" + # """"" #?????? | | ??????????????????????""""" # # """"" ]#?????? | | ???????????????????????"""" # + #?????? | | ???????????????????????""" ?# #!| #?????? | | ?###########??????????? ?### #=" " * #?????? | | ?# [#?????????? [ ????# # "R" #?????? | | ?# #?????????# ????# +!""" ! #?????? | | ?# #??????#########?????# ##########?????? | | ?# #??????# ######### #??????????????? | | ###+##+############ *[[ #???#######????? | | = % #???# ###### | | ### [[= #???# | | #?# ######### #???# | | """" #?#######???????# #???# | | """" ####???????????????# #???# ### ## | | """" #??????????????????# #???## ### | +----------------------------------------------------+ Best States ------------- Heat Dissipation 31 Energy Generation 12 Energy Capacity 265 Matter Stores 300 Matter Capacity 300 Sight Range 16 Terrain Scan Density 10 Evasion (%) 64 Offensive Hacking 10 Item Schematics ----------------- Imp. VTOL Module | -8/Materials | Scanalyzed Chainsword | -8/Materials | Scanalyzed Robot Schematics ------------------ None Fabricated ------------ Nothing Alien Tech Used ----------------- None Achievements -------------- None Challenges ------------ None Game ------ Seed DispersionMissileProtection Manual? 0 Play Time 00:17:49 Cumulative 40.6 hours Start 2022.03.27 @ 13:25:53 End 2022.03.27 @ 13:39:17 Sessions 1 Manual Loads 0 Difficulty Rogue Special Mode None Game No. 121 Rogue 121 Adventurer 0 Explorer 0 Win Type - Total 0 Types 0/0/0/0/0/0/0/0/0 Lore% 32 Gallery% 45 Achievement% 34 Wizard Run 0 Options --------- ASCII 0 Keyboard 0 Movement Mouse Keybinds 0 Fullscreen 1 Font 18/SmallcapsGlow Map View 76x50 Tactical HUD 1 Map Filters NONE Filters NONE Steam 1 RUN: 698cc06c-f4ad-4b1e-ac34-2249860ec4a6